fUSD/lending_fUSD_20250123
["ID","MTS","AMOUNT","RATE_DAILY","PERIOD"]
[350167236,1737665448635,-504.85,0.00018739,2]
[350167238,1737665448645,-500.0,0.00018739,2]
[350167240,1737665448655,-979.32,0.00018739,2]
[350167242,1737665448665,-500.0,0.00018739,2]
[350167244,1737665448674,-500.0,0.00018739,2]
[350167246,1737665448684,-500.0,0.00018739,2]
[350167248,1737665448693,-500.0,0.00018739,2]
[350167250,1737665448703,-500.0,0.00018739,2]
[350167252,1737665448714,-500.0,0.00018739,2]
[350167254,1737665448724,-500.0,0.00018739,2]
[350167256,1737665448733,-500.0,0.00018739,2]
[350167258,1737665448743,-500.0,0.00018739,2]
[350167260,1737665448752,-500.0,0.00018739,2]
[350167262,1737665448761,-622.82,0.00018739,2]
[350167264,1737665448774,-1725.35,0.00018739,2]
[350167266,1737665448783,-500.0,0.00018739,2]
[350167268,1737665448793,-610.16,0.00018739,2]
[350167270,1737665448803,-500.0,0.00018739,2]
[350167272,1737665448813,-500.0,0.00018739,2]
[350167274,1737665448823,-500.0,0.00018739,2]
[350167276,1737665448833,-731.94,0.00018739,2]
[350167278,1737665448842,-500.0,0.00018739,2]
[350167280,1737665448852,-758.87,0.00018739,2]
[350167282,1737665448862,-500.0,0.00018739,2]
[350167284,1737665448871,-1359.52,0.00018739,2]
[350167286,1737665448881,-500.0,0.00018739,2]
[350167289,1737665448891,-921.92,0.00018739,2]
[350167290,1737665448900,-586.7,0.00018739,2]
[350167293,1737665448909,-500.0,0.0001874,2]
[350167295,1737665448919,-500.0,0.0001874,2]
[350167296,1737665448928,-500.0,0.0001874,2]
[350167298,1737665448937,-500.0,0.0001874,2]
[350167300,1737665448946,-1652.01,0.00018751,2]
[350167303,1737665448955,-188.33454543,0.00018832,2]
[350167305,1737665448964,-314.83798149,0.00018866,2]
[350167306,1737665448974,-244.38456526,0.00018868,2]
[350167308,1737665448983,-174.05,0.00018876,2]
[350167310,1737665448992,-240.38203132,0.0001888,2]
[350167313,1737665449002,-169.56200885,0.00018885,2]
[350167314,1737665449012,-1000.0,0.00018965,2]
[350167317,1737665449024,-717.06,0.00018967,2]
[350167318,1737665449034,-500.0,0.00018973,2]
[350167320,1737665449043,-1827.2005023,0.00018974,2]
[350167323,1737665449052,-5556.7563288,0.00018974,2]
[350167324,1737665449062,-581.0,0.0001898,2]
[350167327,1737665449071,-342470.28306223,0.0001898,2]
[350167329,1737665449083,-16792.19130682,0.0001898,2]
[350167331,1737665449093,-9436.51119321,0.0001898,2]
[350167355,1737665449335,-1192.656692,0.0001898,2]
[350167358,1737665449350,-314.190001,0.0001898,2]
[350167360,1737665449362,-1637.65995796,0.0001898,2]
[350167362,1737665449373,-350.0,0.0001898,2]
[350167365,1737665449390,-53245.0,0.0001898,2]
[350167437,1737665676655,155.93,0.00010137,2]
[350167439,1737665855645,153.53,0.00017789,30]
[350167440,1737666245019,2641.30255304,0.00023,30]
[350167441,1737666328905,1000.0,0.00022005,120]
[350167454,1737666630991,437.47,0.00010137,2]
[350167458,1737666631548,-171.55,0.00012329,2]
[350167459,1737666631558,-392.536,0.00015241,2]
[350167460,1737666631608,-216.964,0.00015241,2]
[350167461,1737666631618,-3713.54734866,0.00016568,2]
[350167462,1737666631631,-3713.54734866,0.00016585,2]
[350167463,1737666631641,-3713.54734866,0.0001659,2]
[350167464,1737666631651,-386.13768531,0.00016593,2]
[350167465,1737666631661,-223.87178906,0.00016594,2]
[350167466,1737666631671,-200.0,0.00016603,2]
[350167467,1737666631682,-3713.54734866,0.00016605,2]
[350167468,1737666631691,-200.0,0.00016609,2]
[350167469,1737666631702,-320.2076836,0.00016614,2]
[350167470,1737666631712,-386.13768531,0.00016615,2]
[350167471,1737666631721,-200.0,0.00016621,2]
[350167472,1737666631731,-1856.77367433,0.00016622,2]
[350167473,1737666631741,-223.87178906,0.00016623,2]
[350167474,1737666631751,-3713.54734866,0.00016626,2]
[350167475,1737666631760,-200.0,0.00016628,2]
[350167476,1737666631770,-1856.77367433,0.00016629,2]
[350167477,1737666631780,-200.0,0.00016631,2]
[350167478,1737666631791,-200.0,0.00016632,2]
[350167479,1737666631801,-223.87178906,0.00016633,2]
[350167480,1737666631812,-320.2076836,0.00016633,2]
[350167481,1737666631821,-320.2076836,0.00016637,2]
[350167482,1737666631832,-320.2076836,0.00016639,2]
[350167483,1737666631842,-386.13768531,0.00016639,2]
[350167484,1737666631851,-386.13768531,0.0001664,2]
[350167485,1737666631861,-200.0,0.0001664,2]
[350167486,1737666631870,-260.23094225,0.00016642,2]
[350167487,1737666631882,-1856.77367433,0.00016644,2]
[350167488,1737666631892,-3713.54734866,0.00016657,2]
[350167489,1737666631902,-260.23094225,0.00016659,2]
[350167490,1737666631912,-1856.77367433,0.0001666,2]
[350167491,1737666631921,-200.0,0.00016661,2]
[350167492,1737666631931,-3713.54734866,0.00016663,2]
[350167493,1737666631940,-386.13768531,0.00016664,2]
[350167494,1737666631950,-223.87178906,0.00016668,2]
[350167495,1737666631960,-200.0,0.00016668,2]
[350167496,1737666631969,-260.23094225,0.00016668,2]
[350167497,1737666631979,-223.87178906,0.00016669,2]
[350167498,1737666631988,-200.0,0.0001667,2]
[350167499,1737666631998,-1856.77367433,0.00016675,2]
[350167500,1737666632007,-200.0,0.00016677,2]
[350167501,1737666632017,-320.2076836,0.00016678,2]
[350167502,1737666632027,-260.23094225,0.00016681,2]
[350167503,1737666632036,-3713.54734866,0.00016688,2]
[350167504,1737666632046,-260.23094225,0.00016698,2]
[350167505,1737666632055,-3713.54734866,0.00016699,2]
[350167506,1737666632065,-3713.54734866,0.000167,2]
[350167507,1737666632074,-240.75314685,0.00016782,2]
[350167508,1737666632083,-437.47,0.00016813,2]
[350167509,1737666632093,-250.0,0.00016851,2]
[350167510,1737666632102,-1000.0,0.00016872,2]
[350167511,1737666632112,-164.97,0.00016882,2]
[350167512,1737666632121,-23900.0,0.00016882,2]
[350167513,1737666632134,-250.0,0.00016882,2]
[350167514,1737666632144,-271.23,0.00016936,2]
[350167515,1737666632155,-250.0,0.00016963,2]
[350167516,1737666632165,-1076.0,0.000172,2]
[350167517,1737666632175,-500.0,0.00017452,2]
[350167518,1737666632185,-609.5,0.00017504,2]
[350167519,1737666632194,-150.0,0.00017611,2]
[350167520,1737666632205,-437.86,0.00017611,2]
[350167521,1737666632214,-150.0,0.00017611,2]
[350167522,1737666632224,-437.86,0.00017611,2]
[350167523,1737666632234,-300.0,0.00017611,2]
[350167524,1737666632243,-150.0,0.00017611,2]
[350167525,1737666632253,-150.0,0.00017611,2]
[350167526,1737666632262,-437.86,0.00017611,2]
[350167527,1737666632272,-150.0,0.00017611,2]
[350167528,1737666632281,-150.0,0.00017611,2]
[350167529,1737666632291,-150.0,0.00017611,2]
[350167530,1737666632300,-437.86,0.00017611,2]
[350167531,1737666632309,-1941.94,0.00017616,14]
[350167532,1737666632319,-500.0,0.00017642,2]
[350167533,1737666632329,-500.0,0.00017642,2]
[350167534,1737666632339,-500.0,0.00017642,2]
[350167535,1737666632349,-500.0,0.00017642,2]
[350167536,1737666632358,-500.0,0.00017642,2]
[350167537,1737666632367,-500.0,0.00017642,2]
[350167538,1737666632377,-500.0,0.00017642,2]
[350167539,1737666632389,-500.0,0.00017642,2]
[350167540,1737666632399,-500.0,0.00017642,2]
[350167541,1737666632409,-500.0,0.00017642,2]
[350167542,1737666632419,-500.0,0.00017642,2]
[350167543,1737666632429,-310.22030477,0.00017642,2]
[350167544,1737666632438,-500.0,0.00017642,2]
[350167545,1737666632448,-500.0,0.00017642,2]
[350167546,1737666632458,-500.0,0.00017642,2]
[350167547,1737666632467,-500.0,0.00017642,2]
[350167548,1737666632477,-500.0,0.00017642,2]
[350167549,1737666632486,-500.0,0.00017642,2]
[350167550,1737666632496,-500.0,0.00017642,2]
[350167551,1737666632505,-500.0,0.00017642,2]
[350167552,1737666632514,-255.33877329,0.00017642,2]
[350167553,1737666632524,-500.0,0.00017642,2]
[350167554,1737666632533,-500.0,0.00017642,2]
[350167555,1737666632544,-500.0,0.00017642,2]
[350167556,1737666632554,-500.0,0.00017642,2]
[350167557,1737666632563,-500.0,0.00017642,2]
[350167558,1737666632573,-500.0,0.00017642,2]
[350167559,1737666632584,-500.0,0.00017642,2]
[350167560,1737666632597,-500.0,0.00017642,2]
[350167561,1737666632610,-500.0,0.00017642,2]
[350167562,1737666632620,-500.0,0.00017643,2]
[350167563,1737666632631,-500.0,0.00017643,2]
[350167564,1737666632642,-500.0,0.00017643,2]
[350167565,1737666632652,-500.0,0.00017643,2]
[350167566,1737666632662,-500.0,0.00017643,2]
[350167567,1737666632673,-500.0,0.00017643,2]
[350167568,1737666632693,-500.0,0.00017643,2]
[350167569,1737666632704,-500.0,0.00017643,2]
[350167570,1737666632715,-500.0,0.00017643,2]
[350167571,1737666632724,-500.0,0.00017643,2]
[350167572,1737666632734,-500.0,0.00017643,2]
[350167573,1737666632744,-500.0,0.00017643,2]
[350167574,1737666632755,-500.0,0.00017643,2]
[350167575,1737666632765,-500.0,0.00017643,2]
[350167576,1737666632775,-500.0,0.00017643,2]
[350167577,1737666632786,-500.0,0.00017643,2]
[350167578,1737666632796,-500.0,0.00017643,2]
[350167579,1737666632807,-500.0,0.00017643,2]
[350167580,1737666632817,-500.0,0.00017643,2]
[350167581,1737666632827,-500.0,0.00017643,2]
[350167582,1737666632838,-500.0,0.00017643,2]
[350167583,1737666632848,-500.0,0.00017643,2]
[350167584,1737666632857,-500.0,0.00017643,2]
[350167585,1737666632867,-500.0,0.00017643,2]
[350167586,1737666632877,-500.0,0.00017643,2]
[350167587,1737666632889,-500.0,0.00017643,2]
[350167588,1737666632899,-500.0,0.00017643,2]
[350167589,1737666632909,-500.0,0.00017643,2]
[350167590,1737666632919,-500.0,0.00017643,2]
[350167591,1737666632930,-500.0,0.00017643,2]
[350167592,1737666632939,-500.0,0.00017643,2]
[350167593,1737666632949,-500.0,0.00017643,2]
[350167594,1737666632959,-500.0,0.00017643,2]
[350167595,1737666632969,-500.0,0.00017643,2]
[350167596,1737666632979,-496.31671102,0.00017643,2]
[350167597,1737666632989,-500.0,0.00017643,2]
[350167598,1737666632999,-500.0,0.00017643,2]
[350167599,1737666633008,-500.0,0.00017643,2]
[350167600,1737666633018,-500.0,0.00017643,2]
[350167601,1737666633027,-500.0,0.00017643,2]
[350167602,1737666633037,-174.19434384,0.00017643,2]
[350167603,1737666633047,-500.0,0.00017643,2]
[350167604,1737666633057,-500.0,0.00017643,2]
[350167605,1737666633067,-500.0,0.00017643,2]
[350167606,1737666633077,-500.0,0.00017643,2]
[350167607,1737666633087,-500.0,0.00017643,2]
[350167608,1737666633096,-500.0,0.00017643,2]
[350167609,1737666633106,-361.08163449,0.00017643,2]
[350167610,1737666633116,-150.0,0.00017803,2]
[350167611,1737666633127,-150.0,0.00017803,2]
[350167612,1737666633140,-1269.0,0.00017803,2]
[350167613,1737666633150,-2018.0,0.00017803,2]
[350167614,1737666633160,-636.0,0.00017803,2]
[350167615,1737666633170,-150.0,0.00017803,2]
[350167616,1737666633180,-567.0,0.00017803,2]
[350167617,1737666633190,-1864.0,0.00017803,2]
[350167618,1737666633200,-2956.53,0.00017803,2]
[350167619,1737666633210,-781.0,0.00017803,2]
[350167620,1737666633220,-1261.0,0.00017803,2]
[350167621,1737666633229,-907.0,0.00017803,2]
[350167622,1737666633239,-537.0,0.00017803,2]
[350167623,1737666633249,-3984.0,0.00017803,2]
[350167624,1737666633258,-150.0,0.00017803,2]
[350167625,1737666633268,-1174.0,0.00017803,2]
[350167626,1737666633278,-3903.0,0.00017803,2]
[350167627,1737666633287,-150.0,0.00017803,2]
[350167628,1737666633297,-215.35409885,0.00017816,2]
[350167629,1737666633308,-276.46,0.00017884,2]
[350167630,1737666633318,-296.17566364,0.000179,2]
[350167631,1737666633328,-453.20522971,0.00017916,2]
[350167632,1737666633338,-500.0,0.00017916,2]
[350167633,1737666633348,-500.0,0.00017916,2]
[350167634,1737666633358,-500.0,0.00017916,2]
[350167635,1737666633368,-500.0,0.00017916,2]
[350167636,1737666633379,-500.0,0.00017916,2]
[350167637,1737666633389,-500.0,0.00017916,2]
[350167638,1737666633399,-500.0,0.00017916,2]
[350167639,1737666633409,-500.0,0.00017916,2]
[350167640,1737666633419,-500.0,0.00017916,2]
[350167641,1737666633429,-500.0,0.00017916,2]
[350167642,1737666633440,-500.0,0.00017916,2]
[350167643,1737666633450,-500.0,0.00017916,2]
[350167644,1737666633460,-500.0,0.00017916,2]
[350167645,1737666633470,-500.0,0.00017916,2]
[350167646,1737666633479,-500.0,0.00017916,2]
[350167647,1737666633490,-500.0,0.00017916,2]
[350167648,1737666633500,-500.0,0.00017916,2]
[350167649,1737666633510,-500.0,0.00017916,2]
[350167650,1737666633520,-500.0,0.00017916,2]
[350167651,1737666633530,-500.0,0.00017916,2]
[350167652,1737666633540,-500.0,0.00017916,2]
[350167653,1737666633550,-500.0,0.00017916,2]
[350167654,1737666633560,-500.0,0.00017916,2]
[350167655,1737666633570,-535.72440403,0.00017916,2]
[350167656,1737666633582,-500.0,0.00017916,2]
[350167657,1737666633593,-500.0,0.00017917,2]
[350167658,1737666633603,-500.0,0.00017917,2]
[350167659,1737666633614,-500.0,0.00017917,2]
[350167660,1737666633624,-500.0,0.00017917,2]
[350167661,1737666633634,-500.0,0.00017917,2]
[350167662,1737666633644,-500.0,0.00017917,2]
[350167663,1737666633654,-500.0,0.00017917,2]
[350167664,1737666633664,-500.0,0.00017917,2]
[350167665,1737666633675,-273.89696116,0.00017917,2]
[350167666,1737666633685,-500.0,0.00017917,2]
[350167667,1737666633695,-500.0,0.00017917,2]
[350167668,1737666633705,-500.0,0.00017917,2]
[350167669,1737666633714,-500.0,0.00017917,2]
[350167670,1737666633725,-500.0,0.00017917,2]
[350167671,1737666633735,-500.0,0.00017917,2]
[350167672,1737666633745,-500.0,0.00017917,2]
[350167673,1737666633755,-500.0,0.00017917,2]
[350167674,1737666633765,-500.0,0.00017917,2]
[350167675,1737666633774,-500.0,0.00017917,2]
[350167676,1737666633783,-500.0,0.00017917,2]
[350167677,1737666633793,-500.0,0.00017917,2]
[350167678,1737666633803,-215.35409877,0.00017979,2]
[350167679,1737666633813,-5000.0,0.00017982,2]
[350167680,1737666633823,-169.42667356,0.00017982,2]
[350167681,1737666633834,-1029.286,0.00018,2]
[350167682,1737666633844,-296.17566363,0.00018038,2]
[350167683,1737666633853,-958.04,0.00018072,2]
[350167684,1737666633864,-500.0,0.00018081,2]
[350167685,1737666633875,-1010.53,0.00018081,2]
[350167686,1737666633887,-500.0,0.00018081,2]
[350167687,1737666633897,-735.26,0.00018081,2]
[350167688,1737666633906,-500.0,0.00018081,2]
[350167689,1737666633916,-500.0,0.00018081,2]
[350167690,1737666633926,-500.0,0.00018081,2]
[350167691,1737666633935,-599.09,0.00018081,2]
[350167692,1737666633944,-500.0,0.00018081,2]
[350167693,1737666633954,-500.0,0.00018081,2]
[350167694,1737666633963,-500.0,0.00018081,2]
[350167695,1737666633973,-500.0,0.00018081,2]
[350167696,1737666633983,-500.0,0.00018081,2]
[350167697,1737666633993,-900.6,0.00018081,2]
[350167698,1737666634003,-812.59,0.00018081,2]
[350167699,1737666634012,-500.0,0.00018081,2]
[350167700,1737666634022,-500.0,0.00018081,2]
[350167701,1737666634032,-500.0,0.00018081,2]
[350167702,1737666634043,-500.0,0.00018081,2]
[350167703,1737666634053,-721.42,0.00018081,2]
[350167704,1737666634063,-773.18,0.00018081,2]
[350167705,1737666634072,-500.0,0.00018081,2]
[350167706,1737666634081,-500.0,0.00018081,2]
[350167707,1737666634091,-500.0,0.00018081,2]
[350167708,1737666634100,-500.0,0.00018081,2]
[350167709,1737666634110,-716.72,0.00018081,2]
[350167710,1737666634120,-1410.66,0.00018081,2]
[350167711,1737666634134,-500.0,0.00018081,2]
[350167712,1737666634143,-583.44,0.00018081,2]
[350167713,1737666634153,-877.3,0.00018081,2]
[350167714,1737666634164,-150.0,0.00018082,2]
[350167715,1737666634174,-150.0,0.00018082,2]
[350167716,1737666634184,-150.0,0.00018082,2]
[350167717,1737666634195,-150.0,0.00018082,2]
[350167718,1737666634204,-150.0,0.00018082,2]
[350167719,1737666634214,-112100.0637708,0.00018082,2]
[350167720,1737666634224,-11290.77307142,0.00018082,2]
[350167721,1737666634234,-734.29843379,0.00018082,2]
[350167722,1737666634244,-5494.3098904,0.00018082,2]
[350167723,1737666634255,-8015.82944896,0.00018082,2]
[350167724,1737666634264,-991.2,0.00018082,2]
[350167725,1737666634276,-5373.38721979,0.00018089,2]
[350167726,1737666634287,-215.35409877,0.00018143,2]
[350167727,1737666634298,-296.17566363,0.00018176,2]
[350167728,1737666634308,-150.0,0.00018178,2]
[350167729,1737666634319,-150.0,0.00018178,2]
[350167730,1737666634330,-437.86,0.00018178,2]
[350167731,1737666634340,-150.0,0.00018178,2]
[350167732,1737666634350,-332.312983,0.00018189,2]
[350167733,1737666634360,-500.0,0.00018189,2]
[350167734,1737666634370,-500.0,0.00018189,2]
[350167735,1737666634385,-161.561958,0.00018189,2]
[350167736,1737666634396,-500.0,0.00018189,2]
[350167737,1737666634405,-160.199226,0.00018189,2]
[350167738,1737666634415,-500.0,0.00018189,2]
[350167739,1737666634425,-500.0,0.00018189,2]
[350167740,1737666634435,-500.0,0.00018189,2]
[350167741,1737666634444,-629.765466,0.00018189,2]
[350167742,1737666634454,-781.75,0.00018189,2]
[350167743,1737666634464,-500.0,0.00018189,2]
[350167744,1737666634473,-500.0,0.00018189,2]
[350167745,1737666634483,-500.0,0.00018189,2]
[350167746,1737666634492,-514.39,0.00018189,2]
[350167747,1737666634502,-1068.34,0.00018189,2]
[350167748,1737666634511,-958.93,0.00018189,2]
[350167749,1737666634522,-500.0,0.00018189,2]
[350167750,1737666634532,-766.36,0.00018189,2]
[350167751,1737666634542,-1149.94,0.00018189,2]
[350167752,1737666634551,-798.84,0.00018189,2]
[350167753,1737666634561,-626.55,0.00018189,2]
[350167754,1737666634570,-500.0,0.00018189,2]
[350167755,1737666634581,-507.19,0.00018189,2]
[350167756,1737666634591,-1630.31,0.00018189,2]
[350167757,1737666634603,-916.37,0.00018189,2]
[350167758,1737666634614,-500.0,0.00018189,2]
[350167759,1737666634624,-500.0,0.00018189,2]
[350167760,1737666634638,-500.0,0.00018189,2]
[350167761,1737666634649,-500.0,0.00018189,2]
[350167762,1737666634660,-500.0,0.00018189,2]
[350167763,1737666634671,-500.0,0.00018189,2]
[350167764,1737666634682,-959.48,0.00018189,2]
[350167765,1737666634692,-500.0,0.00018189,2]
[350167766,1737666634703,-500.0,0.00018189,2]
[350167767,1737666634896,-738.0,0.00018189,2]
[350167768,1737666634907,-500.0,0.00018189,2]
[350167769,1737666634916,-500.0,0.00018189,2]
[350167770,1737666634926,-500.0,0.00018189,2]
[350167771,1737666634936,-1036.55,0.00018189,2]
[350167772,1737666634945,-500.0,0.00018189,2]
[350167773,1737666634954,-500.0,0.00018189,2]
[350167774,1737666634964,-1523.0,0.00018189,2]
[350167775,1737666634973,-500.0,0.0001819,2]
[350167776,1737666634982,-500.0,0.0001819,2]
[350167777,1737666634992,-500.0,0.0001819,2]
[350167778,1737666635002,-500.0,0.0001819,2]
[350167779,1737666635011,-500.0,0.0001819,2]
[350167780,1737666635020,-500.0,0.0001819,2]
[350167781,1737666635030,-500.0,0.0001819,2]
[350167782,1737666635039,-500.0,0.0001819,2]
[350167783,1737666635050,-500.0,0.0001819,2]
[350167784,1737666635059,-500.0,0.0001819,2]
[350167785,1737666635069,-500.0,0.0001819,2]
[350167786,1737666635078,-500.0,0.0001819,2]
[350167787,1737666635088,-500.0,0.0001819,2]
[350167788,1737666635097,-500.0,0.0001819,2]
[350167789,1737666635107,-500.0,0.0001819,2]
[350167790,1737666635116,-595.01175634,0.0001819,2]
[350167791,1737666635126,-500.0,0.0001819,2]
[350167792,1737666635138,-500.0,0.0001819,2]
[350167793,1737666635147,-500.0,0.0001819,2]
[350167794,1737666635156,-500.0,0.0001819,2]
[350167795,1737666635166,-500.0,0.0001819,2]
[350167796,1737666635175,-639.8,0.0001819,2]
[350167797,1737666635184,-500.0,0.0001819,2]
[350167798,1737666635194,-500.0,0.00018191,2]
[350167799,1737666635204,-500.0,0.00018191,2]
[350167800,1737666635214,-500.0,0.00018191,2]
[350167801,1737666635224,-500.0,0.00018191,2]
[350167802,1737666635234,-500.0,0.00018191,2]
[350167803,1737666635243,-500.0,0.00018191,2]
[350167804,1737666635253,-500.0,0.00018191,2]
[350167805,1737666635263,-299.28,0.00018191,2]
[350167806,1737666635272,-500.0,0.00018191,2]
[350167807,1737666635282,-500.0,0.00018191,2]
[350167808,1737666635291,-500.0,0.00018191,2]
[350167809,1737666635301,-5373.38721976,0.00018212,2]
[350167810,1737666635311,-215.35409877,0.00018306,2]
[350167811,1737666635320,-296.17566363,0.00018314,2]
[350167812,1737666635330,-1000.0,0.00018328,2]
[350167813,1737666635339,-5373.38721976,0.00018336,2]
[350167814,1737666635349,-500.0,0.00018355,2]
[350167815,1737666635359,-1010.53,0.00018355,2]
[350167816,1737666635368,-500.0,0.00018355,2]
[350167817,1737666635377,-735.26,0.00018355,2]
[350167818,1737666635388,-500.0,0.00018355,2]
[350167819,1737666635397,-500.0,0.00018355,2]
[350167820,1737666635407,-500.0,0.00018355,2]
[350167821,1737666635416,-599.09,0.00018355,2]
[350167822,1737666635426,-500.0,0.00018355,2]
[350167823,1737666635436,-500.0,0.00018355,2]
[350167824,1737666635445,-500.0,0.00018355,2]
[350167825,1737666635455,-900.6,0.00018355,2]
[350167826,1737666635464,-812.59,0.00018355,2]
[350167827,1737666635474,-500.0,0.00018355,2]
[350167828,1737666635483,-500.0,0.00018355,2]
[350167829,1737666635493,-500.0,0.00018355,2]
[350167830,1737666635502,-413.51151543,0.00018355,2]
[350167831,1737666635515,-721.42,0.00018355,2]
[350167832,1737666635525,-773.18,0.00018355,2]
[350167833,1737666635535,-500.0,0.00018355,2]
[350167834,1737666635545,-595.71,0.00018355,2]
[350167835,1737666635557,-500.0,0.00018355,2]
[350167836,1737666635566,-716.72,0.00018355,2]
[350167837,1737666635577,-1410.66,0.00018355,2]
[350167838,1737666635591,-500.0,0.00018355,2]
[350167839,1737666635600,-583.44,0.00018355,2]
[350167840,1737666635610,-877.3,0.00018355,2]
[350167841,1737666635619,-437.86,0.00018433,2]
[350167842,1737666635631,-150.0,0.00018433,2]
[350167843,1737666635640,-150.0,0.00018433,2]
[350167844,1737666635650,-437.86,0.00018433,2]
[350167845,1737666635660,-437.86,0.00018433,2]
[350167846,1737666635669,-437.86,0.00018433,2]
[350167847,1737666635679,-437.86,0.00018433,2]
[350167848,1737666635688,-437.86,0.00018433,2]
[350167849,1737666635699,-437.86,0.00018433,2]
[350167850,1737666635708,-437.86,0.00018433,2]
[350167851,1737666635718,-437.86,0.00018433,2]
[350167852,1737666635728,-437.86,0.00018433,2]
[350167853,1737666635738,-296.17566363,0.00018452,2]
[350167854,1737666635747,-5373.38721976,0.00018459,2]
[350167855,1737666635757,-332.312983,0.00018463,2]
[350167856,1737666635767,-500.0,0.00018463,2]
[350167857,1737666635777,-500.0,0.00018463,2]
[350167858,1737666635787,-500.0,0.00018463,2]
[350167859,1737666635797,-500.0,0.00018463,2]
[350167860,1737666635807,-500.0,0.00018463,2]
[350167861,1737666635817,-629.765466,0.00018463,2]
[350167862,1737666635826,-781.75,0.00018463,2]
[350167863,1737666635836,-500.0,0.00018463,2]
[350167864,1737666635846,-500.0,0.00018463,2]
[350167865,1737666635856,-500.0,0.00018463,2]
[350167866,1737666635866,-514.39,0.00018463,2]
[350167867,1737666635876,-1068.34,0.00018463,2]
[350167868,1737666635888,-958.93,0.00018463,2]
[350167869,1737666635899,-500.0,0.00018463,2]
[350167870,1737666635909,-766.36,0.00018463,2]
[350167871,1737666635919,-1149.94,0.00018463,2]
[350167872,1737666635929,-798.84,0.00018463,2]
[350167873,1737666635938,-626.55,0.00018463,2]
[350167874,1737666635948,-507.19,0.00018463,2]
[350167875,1737666635958,-1630.31,0.00018463,2]
[350167876,1737666635967,-916.37,0.00018463,2]
[350167877,1737666635977,-500.0,0.00018463,2]
[350167878,1737666635987,-500.0,0.00018463,2]
[350167879,1737666635997,-500.0,0.00018463,2]
[350167880,1737666636006,-500.0,0.00018463,2]
[350167881,1737666636016,-500.0,0.00018463,2]
[350167882,1737666636026,-500.0,0.00018463,2]
[350167883,1737666636036,-959.48,0.00018463,2]
[350167884,1737666636046,-500.0,0.00018463,2]
[350167885,1737666636056,-500.0,0.00018463,2]
[350167886,1737666636065,-738.0,0.00018463,2]
[350167887,1737666636074,-500.0,0.00018463,2]
[350167888,1737666636084,-500.0,0.00018463,2]
[350167889,1737666636094,-1036.55,0.00018463,2]
[350167890,1737666636103,-500.0,0.00018463,2]
[350167891,1737666636113,-500.0,0.00018463,2]
[350167892,1737666636122,-1523.0,0.00018463,2]
[350167893,1737666636134,-500.0,0.00018464,2]
[350167894,1737666636143,-215.05,0.00018464,2]
[350167895,1737666636153,-611.82,0.00018464,2]
[350167896,1737666636163,-500.0,0.00018464,2]
[350167897,1737666636173,-500.0,0.00018464,2]
[350167898,1737666636186,-500.0,0.00018464,2]
[350167899,1737666636196,-500.0,0.00018464,2]